Cogmind - Beta 10.2 @@@ ROGUE MODE // 2020.12.28 @ 20:21:05 Player: CrossedViper Result: Destroyed by Y-54 Guardian with Gatling Laser Performance ------------- Evolutions (4) 2000 Regions Visited (12) 2400 Robots Destroyed (195) 975 Value Destroyed (7273) 7273 Prototype IDs (10) 200 Alien Tech Used (0) 0 Bonus (4507) 4507 TOTAL SCORE: 17355 Bonus ------- High Alert Combat Kills 2114 Follower Combat Kills 93 Entered Garrisons 800 Used RIF Installer 1500 Cogmind --------- Core Integrity 0/850 Matter 211/300 Energy 37/100 System Corruption 1% Temperature Cool (12) Movement Walking (180) Ox2 Location -6/Garrison Parts ------- > --- POWER (1) -------- (None) > --- PROPULSION (3) --- Flexi-carbon Leg Flexi-carbon Leg > --- UTILITY (9) ------ High-capacity Storage Unit High-capacity Storage Unit High-capacity Storage Unit Advanced Terrain Scan Processor Targeting Computer Targeting Computer Improved Targeting Computer Target Analyzer Improved Weapon Shielding > --- WEAPON (2) ------- Gauss Rifle EMP Blaster > --- INVENTORY (28) --- Light Angular Momentum Engine Light Treads Carbon-fiber Leg Compact Wheel Large Storage Unit Large Storage Unit Experimental Sensor Array Improved Particle Charger Improved Particle Charger Relay Coupler [NC] (31) Relay Coupler [NC] (30) Relay Coupler [NC] (25) Relay Coupler [Swarmer] (46) Relay Coupler [Grunt] (33) Relay Coupler [Grunt] (28) Relay Coupler [Brawler] (27) Relay Coupler [Duelist] (33) Relay Coupler [Duelist] (25) Relay Coupler [Behemoth] (12) System Backup Module Heavy Laser Cooled Particle Cannon Gauss Rifle Flak Gun Peak State ------------ > --- POWER ------------ Enhanced Nuclear Core > --- PROPULSION ------- Titanium Leg Flexi-carbon Leg Flexi-carbon Leg > --- UTILITY ---------- Advanced Heat Sink High-capacity Storage Unit High-capacity Storage Unit High-capacity Storage Unit Advanced Terrain Scan Processor Hardened Medium Armor Plating Improved Light Armor Plating Focal Shield Relay Coupler [Behemoth] > --- WEAPON ----------- Heavy Plasma Cannon Long-range Missile Launcher > --- INVENTORY -------- Enhanced Nuclear Core Carbon-fiber Leg Large Storage Unit Large Storage Unit Experimental Sensor Array Improved Terrain Scanner Improved Particle Charger Improved Particle Charger Improved Weapon Shielding Improved Weapon Shielding Relay Coupler [NC] Relay Coupler [Swarmer] Relay Coupler [Grunt] Relay Coupler [Duelist] System Backup Module Lightning Gun Force Rifle Cooled Particle Cannon Heavy Plasma Cannon Heavy Plasma Cannon Heavy Plasma Cannon Gauss Rifle Precision Assault Rifle Coil Gun EMP Blaster EMP Blaster Datajack [Rating: 66] Favorites ----------- Power Cooled Ion Engine Engine Cooled Ion Engine Power Core Enhanced Nuclear Core Propulsion Light Treads Treads Light Treads Leg Carbon-fiber Leg Utility High-capacity Storage Unit Device Improved Terrain Scanner Storage High-capacity Storage Unit Processor Advanced Terrain Scan Processor Hackware Relay Coupler [Behemoth] Protection Reflective Plating Weapon Improved Assault Rifle Energy Gun Lightning Gun Energy Cannon Advanced Beam Cannon Ballistic Gun Improved Assault Rifle Ballistic Cannon Light Cannon Launcher Rocket Launcher Special Weapon Welding Torch Slashing Weapon Katana Special Melee Weapon Datajack Build | -11 -10 -10 -9 -9 -9 -9 -7 -7 -6 -6 -6 -6 ------- Run | Scr Mat Min Mat Sto Gar Rec Fac Gar Fac Gar Fac Gar Slots Evolved 8 | . . . 2 . . . 4 . 2 . . . Power . | . . . . . . . . . . . . . Propulsion 1 | . . . . . . . 1 . . . . . Utility 7 | . . . 2 . . . 3 . 2 . . . Weapon . | . . . . . . . . . . . . . Parts Attached 235 | . 9 2 30 17 15 . 37 42 17 46 9 11 Power 17 | . 1 1 4 1 . . 4 2 . 2 1 1 Engine 13 | . 1 1 4 1 . . 2 1 . 1 1 1 Core 4 | . . . . . . . 2 1 . 1 . . Reactor . | . . . . . . . . . . . . . Propulsion 58 | . 2 . 4 4 3 . 8 13 4 14 3 3 Treads 29 | . 2 . 4 4 3 . 8 6 . . 1 1 Leg 29 | . . . . . . . . 7 4 14 2 2 Wheel . | . . . . . . . . . . . . . Hover . | . . . . . . . . . . . . . Flight . | . . . . . . . . . . . . . Utility 74 | . 2 . 11 4 6 . 13 11 7 14 2 4 Device 25 | . . . 3 . 3 . 3 7 2 7 . . Storage 9 | . 2 . 5 2 . . . . . . . . Processor 7 | . . . 1 . . . 1 . 1 . 1 3 Hackware 2 | . . . . . . . . . 1 1 . . Protection 31 | . . . 2 2 3 . 9 4 3 6 1 1 Artifact . | . . . . . . . . . . . . . Weapon 86 | . 4 1 11 8 6 . 12 16 6 16 3 3 Energy Gun 22 | . . . 5 . . . 5 7 . 3 2 . Energy Cannon 12 | . . . 1 1 3 . 1 2 . 4 . . Ballistic Gun 32 | . 2 1 4 5 2 . 4 3 3 5 1 2 Ballistic Cannon 1 | . 1 . . . . . . . . . . . Launcher 14 | . . . 1 1 1 . 2 4 1 3 . 1 Special Weapon 1 | . 1 . . . . . . . . . . . Impact Weapon . | . . . . . . . . . . . . . Slashing Weapon 1 | . . . . 1 . . . . . . . . Piercing Weapon . | . . . . . . . . . . . . . Special Melee Weapon 3 | . . . . . . . . . 2 1 . . Unidentified Prototypes 10 | . . . 5 1 . . 4 . . . . . Parts Lost 63 | . 5 1 2 1 1 . 1 9 2 31 2 8 Power 5 | . 1 . . . . . . . . 2 . 2 Propulsion 19 | . . . 1 1 . . . 2 1 10 1 3 Utility 15 | . . . . . . . 1 3 1 9 . 1 Weapon 24 | . 4 1 1 . 1 . . 4 . 10 1 2 Highest Loss Streak 14 | . 3 1 1 1 1 . 1 7 2 14 2 5 Average Slot Usage (%) 95 | . 96 100 97 99 99 100 97 98 96 91 62 84 Engine 8 | . 12 14 11 11 11 11 5 6 . 4 2 4 Treads 16 | . 12 28 20 21 22 22 20 14 4 . 3 3 Leg 4 | . 15 . . . . . . 7 14 18 7 14 Device 7 | . . . 1 . 9 11 11 12 18 16 6 5 Storage 26 | . 28 28 31 33 33 33 23 23 20 20 20 20 Processor 2 | . . . 3 . . . . 2 . 6 9 18 Protection 7 | . . . 7 11 1 . 18 13 14 8 3 3 Energy Gun 3 | . 6 . 8 . . . 3 7 1 . 3 2 Energy Cannon 2 | . . . . 2 7 11 3 1 . 1 . . Ballistic Gun 10 | . 7 26 13 16 9 11 6 4 5 8 3 9 Naked Turns . | . . . . . . . . . . . . . Heaviest Build 147 | 13 41 41 95 117 117 112 127 133 132 147 119 118 Greatest Support 68 | 20 40 40 40 40 40 40 68 68 68 57 30 55 Greatest Overweight (x) 8 | . 2 1 3 5 2 2 3 6 2 8 7 6 Average Overweight (x) 1 | . 1 . 1 2 2 2 1 1 1 2 3 2 Largest Inventory Capacity 28 | . 16 16 26 28 28 28 28 28 28 28 28 28 Average Capacity 25 | . 15 16 23 27 28 28 28 28 28 28 28 28 Most Carried 28 | . 11 13 26 28 28 28 28 28 28 28 26 26 Average Carried 23 | . 8 11 22 27 27 28 27 27 27 24 22 25 Final Capacity 28 | 6 16 16 26 28 28 28 28 28 28 28 28 28 Final Carried 28 | 6 11 13 26 28 28 28 28 28 28 22 26 24 Class Distribution -------------------- 72% | Hauler-Mutant 15% | Mutant 7% | Scavenger-Mutant 5% | Bothacker-Mutant Dominant Class ---------------- Mutant | -10/Materials Mutant | -10/Mines Hauler-Mutant | -9/Materials Hauler-Mutant | -9/Storage Hauler-Mutant | -9/Garrison Hauler-Mutant | -9/Recycling Hauler-Mutant | -7/Factory Hauler-Mutant | -7/Garrison Bothacker-Mutant | -6/Factory Scavenger-Mutant | -6/Garrison Hauler-Mutant | -6/Factory Hauler-Mutant | -6/Garrison Resources | -11 -10 -10 -9 -9 -9 -9 -7 -7 -6 -6 -6 -6 ----------- Run | Scr Mat Min Mat Sto Gar Rec Fac Gar Fac Gar Fac Gar Matter Collected 4923 | 200 420 149 664 502 322 . 642 785 48 733 297 161 Remotely . | . . . . . . . . . . . . . Salvage Created 7916 | . 458 194 1421 814 595 . 1166 1262 386 959 430 231 Parts 392 | . 26 16 81 43 40 . 62 49 14 32 17 12 Haulers Intercepted 12 | . 1 . 6 1 . . 4 . . . . . Recyclers Shooed 11 | . 7 . 1 . . . 1 . 2 . . . Parts Field Recycled . | . . . . . . . . . . . . . Retrieved Matter . | . . . . . . . . . . . . . Parts Self-Destructed . | . . . . . . . . . . . . . Prevented . | . . . . . . . . . . . . . Kills | -11 -10 -10 -9 -9 -9 -9 -7 -7 -6 -6 -6 -6 ------- Run | Scr Mat Min Mat Sto Gar Rec Fac Gar Fac Gar Fac Gar Combat Hostiles Destroyed 155 | . 11 8 21 17 22 . 18 27 4 19 4 4 Guns 79 | . 3 8 18 10 6 . 11 13 1 2 4 3 Cannons 28 | . 8 . . 4 6 . 2 2 . 6 . . AOE 42 | . . . 3 3 10 . 5 8 3 10 . . Classes Destroyed 14 | . 6 . 5 . . . 2 . . 1 . . Worker 14 | . 1 1 4 . . . 7 . . . 1 . Builder 1 | . . . 1 . . . . . . . . . Tunneler 1 | . 1 . . . . . . . . . . . Hauler 12 | . 1 . 6 1 . . 4 . . . . . Recycler 9 | . 3 . 2 1 . . 1 . 1 . 1 . Watcher 3 | . . . 2 . . . 1 . . . . . Swarmer 42 | . 6 6 4 . 11 . 6 7 . 2 . . Grunt 74 | . 5 2 11 11 6 . 6 13 4 14 2 . Brawler 4 | . . . 1 . . . . 3 . . . . Duelist 4 | . . . 1 . . . . 2 . 1 . . Sentry 23 | . . . 4 6 5 . 4 1 . 1 2 . Hunter 5 | . . . . . . . 1 1 . . . 3 Programmer 2 | . . . . . . . 1 . . . . 1 Behemoth 1 | . . . . . . . . . . 1 . . Best Kill Streak 7 | . 6 3 6 5 7 . 7 6 4 5 3 2 Combat Bots Only 7 | . 6 3 5 5 7 . 3 6 4 5 1 2 Max Kills in Single Turn 4 | . 1 2 3 2 4 . 3 2 2 3 2 1 Gunslinging 1 | . . 1 1 . . . . . . . . . Exploded 4 | . . . 2 2 4 . 2 2 2 3 . . Melee . | . . . . . . . . . . . . . Uniques/NPCs Destroyed . | . . . . . . . . . . . . . Combat | -11 -10 -10 -9 -9 -9 -9 -7 -7 -6 -6 -6 -6 -------- Run | Scr Mat Min Mat Sto Gar Rec Fac Gar Fac Gar Fac Gar Damage Taken 13344 | . 765 351 904 711 598 . 1432 2268 335 4146 495 1339 Core 1560 | . 145 68 69 98 48 . 85 191 34 474 143 205 Absorbed by Shields 3 | . . . . . 3 . . . . . . . Core Remaining (%) 55 | 100 . 14 . . . 46 . 60 . . . . Volleys Fired 580 | . 71 21 86 62 51 5 68 81 13 73 20 29 Largest 2 | . 2 2 2 2 2 2 2 2 2 2 2 2 Hottest 180 | . 90 55 113 91 91 91 100 123 88 180 108 103 Shots Fired 1022 | . 119 40 165 123 71 10 121 151 26 109 39 48 Gun 759 | . 56 37 162 98 36 5 84 131 22 51 39 38 Cannon 188 | . 58 3 1 22 26 5 32 7 . 34 . . Launcher 70 | . . . 2 3 9 . 5 13 4 24 . 10 Special 5 | . 5 . . . . . . . . . . . Kinetic 618 | . 90 40 115 98 36 5 63 58 11 47 20 35 Thermal 166 | . 16 . 1 22 26 5 32 7 . 35 19 3 Explosive 27 | . . . 2 3 9 . 5 5 . 3 . . Electromagnetic 211 | . 13 . 47 . . . 21 81 15 24 . 10 Robot Hit Streak 23 | . 11 7 15 16 23 1 20 16 7 9 10 11 Robot Miss Streak 9 | . 9 3 3 2 3 9 4 5 1 5 1 2 Penetration Max 1 | . . . . . . . 1 . . 1 . . Secondary Targets 11 | . . 1 2 2 . . . 5 . . 1 . Max Gunslinging Chain 1 | . . 1 1 1 . . . 1 . . 1 . Shots Hit Robots 661 | . 57 25 117 93 35 1 86 96 27 63 29 32 Core Hits 384 | . 26 13 66 36 37 . 51 55 12 57 13 18 Critical Hits 13 | . . . 1 1 2 . 6 1 . . 2 . Critical Kills 7 | . . . . . 1 . 3 1 . . 2 . Critical Parts Destroyed 5 | . . . 1 1 1 . 2 . . . . . Melee Attacks 11 | . . . . 1 . . . . 9 1 . . Impact . | . . . . . . . . . . . . . Slashing 1 | . . . . 1 . . . . . . . . Piercing . | . . . . . . . . . . . . . Sneak Attacks 9 | . . . . . . . . . 9 . . . Combat Hostiles 3 | . . . . . . . . . 3 . . . Follow-up Attacks . | . . . . . . . . . . . . . Damage Inflicted 17658 | . 768 271 2138 1707 1702 21 2690 2878 658 3459 633 733 Guns 9072 | . 261 255 1697 1130 303 . 1391 1868 291 802 633 441 Cannons 2691 | . 499 16 20 288 268 21 609 60 . 910 . . Explosions 5876 | . . . 421 286 1131 . 685 950 367 1744 . 292 Melee . | . . . . . . . . . . . . . Ramming 19 | . 8 . . 3 . . 5 . . 3 . . Kinetic 6859 | . 633 271 1008 1130 303 . 1107 882 121 761 245 398 Thermal 3700 | . 61 . 190 288 268 21 609 147 185 1445 388 98 Explosive 3613 | . . . 251 286 1131 . 685 691 . 569 . . Electromagnetic 3467 | . 66 . 689 . . . 284 1158 352 681 . 237 Impact . | . . . . . . . . . . . . . Slashing . | . . . . . . . . . . . . . Piercing . | . . . . . . . . . . . . . Highest Corruption 6 | . . . 2 2 2 2 2 6 . 1 1 1 Average Corruption 2 | . . . 2 2 2 2 1 3 . 1 1 1 Corruption Purged . | . . . . . . . . . . . . . Effects 73 | . . . 4 11 10 5 3 31 . 3 5 1 Message Errors 16 | . . . 1 2 4 1 1 4 . . 2 1 Matter Fused 6 | . . . . . . . . 6 . . . . Heat Flow Errors 12 | . . . . 2 1 3 1 5 . . . . Energy Discharges 12 | . . . 2 3 3 . 1 2 . . 1 . Data Loss (minor) 12 | . . . 1 1 1 . . 5 . 3 1 . Data Loss (major) 1 | . . . . . . . . 1 . . . . Targeting Errors 13 | . . . . 3 . 1 . 8 . . 1 . Weapon Failures 1 | . . . . . 1 . . . . . . . Overload Shots . | . . . . . . . . . . . . . Overflow Damage 158 | . 12 . 15 . 17 . 21 60 . 33 . . Projectiles 13 | . 12 . . . 1 . . . . . . . Explosions 145 | . . . 15 . 16 . 21 60 . 33 . . Melee . | . . . . . . . . . . . . . Knockbacks 11 | . 10 1 . . . . . . . . . . Impact . | . . . . . . . . . . . . . Kinetic 10 | . 9 1 . . . . . . . . . . Secondary 1 | . 1 . . . . . . . . . . . Self-Inflicted Damage 634 | . . . 32 . 34 . 40 234 14 263 . 17 Shots 32 | . . . 2 . 2 . 2 10 1 13 . 2 Rammed 3 | . 1 . . 1 . . 1 . . . . . Targets Rammed 6 | . 3 . . 1 . . 1 . . 1 . . Kicked 2 | . 1 . . . . . . . . 1 . . Crushed 1 | . 1 . . . . . . . . . . . Highest Temperature 448 | . 343 14 448 355 256 268 253 350 169 315 184 54 Average Temperature 97 | . 124 9 89 130 54 103 84 105 56 102 64 23 Received Heat Transfer 3370 | . 138 63 252 327 115 . 342 564 129 1161 183 96 Effects 10 | . 2 . 2 2 2 . . 1 . 1 . . Shutdowns 3 | . 1 . 1 1 . . . . . . . . Energy Bleed 1 | . . . . . . . . . . 1 . . Interference 3 | . . . 1 . 2 . . . . . . . Matter Decay 1 | . . . . . . . . 1 . . . . Short Circuit 2 | . 1 . . 1 . . . . . . . . Siege Activations . | . . . . . . . . . . . . . Robots Corrupted 6 | . . . . . . . . 4 . 1 . 1 Combat Hostiles 6 | . . . . . . . . 4 . 1 . 1 Parts Fried 17 | . . . 2 . . . 1 9 1 4 . . Impact Corruptions . | . . . . . . . . . . . . . Robots Melted . | . . . . . . . . . . . . . Combat Hostiles . | . . . . . . . . . . . . . Parts Melted 7 | . 1 . . . . . 1 . . 2 3 . Heat Transferred 5340 | . 185 . 287 518 442 37 962 161 100 1790 733 125 Parts Sabotaged . | . . . . . . . . . . . . . Parts Stolen . | . . . . . . . . . . . . . Parts Stripped . | . . . . . . . . . . . . . Power Chain Reactions 13 | . . . 4 . . . . 2 1 5 . 1 Missiles Intercepted . | . . . . . . . . . . . . . Alert | -11 -10 -10 -9 -9 -9 -9 -7 -7 -6 -6 -6 -6 ------- Run | Scr Mat Min Mat Sto Gar Rec Fac Gar Fac Gar Fac Gar Peak Influence 1497 | . 317 162 369 506 1241 603 1271 1497 882 1285 650 365 Initial 1007 | . . 47 . 147 331 558 1007 811 785 617 609 315 Average 636 | . 158 55 149 295 876 487 1055 1179 857 1063 526 325 Maximum Alert Level 4 | . 1 . 1 2 4 2 4 4 3 4 2 1 Low Security (%) 27 | . 64 100 77 26 . . . . . . . . Level 1 13 | . 35 . 22 52 4 24 . . . . . 100 Level 2 13 | . . . . 21 18 75 . . . 13 100 . Level 3 26 | . . . . . 62 . 69 40 100 24 . . Level 4 19 | . . . . . 14 . 30 59 . 62 . . Level 5 . | . . . . . . . . . . . . . High Security . | . . . . . . . . . . . . . Max Security . | . . . . . . . . . . . . . Squads Dispatched 14 | . 2 . 3 4 . . 3 . 1 . 1 . Investigation 3 | . 1 . 1 . . . 1 . . . . . Extermination 1 | . . . . . . . 1 . . . . . Reinforcement 7 | . 1 . 2 1 . . 1 . 1 . 1 . Assault . | . . . . . . . . . . . . . Garrison 3 | . . . . 3 . . . . . . . . Intercept . | . . . . . . . . . . . . . Construction Impeded 2 | . . . . . . . . . 1 . 1 . Haulers Reinforced 1 | . . . . . . . 1 . . . . . Stealth | -11 -10 -10 -9 -9 -9 -9 -7 -7 -6 -6 -6 -6 --------- Run | Scr Mat Min Mat Sto Gar Rec Fac Gar Fac Gar Fac Gar Distress Signals 8 | . . . 2 3 . . 3 . . . . . Communications Jammed . | . . . . . . . . . . . . . Distress Signals . | . . . . . . . . . . . . . Times Spotted 266 | . 18 10 48 24 22 25 27 29 4 43 6 10 Peak Tracking Total 9 | . 4 3 5 6 5 4 4 5 4 9 2 7 Tactical Retreats 29 | . 4 . 6 . 3 . . 2 . 12 2 . Traps | -11 -10 -10 -9 -9 -9 -9 -7 -7 -6 -6 -6 -6 ------- Run | Scr Mat Min Mat Sto Gar Rec Fac Gar Fac Gar Fac Gar Traps Triggered 25 | . . . 2 1 9 . . 4 . 8 1 . Indirectly . | . . . . . . . . . . . . . Trap Hack Attempts . | . . . . . . . . . . . . . Triggered . | . . . . . . . . . . . . . Disarmed . | . . . . . . . . . . . . . Reprogrammed . | . . . . . . . . . . . . . Reused . | . . . . . . . . . . . . . Traps Extracted . | . . . . . . . . . . . . . Installed . | . . . . . . . . . . . . . Triggered 1 | . . . 1 . . . . . . . . . Machines | -11 -10 -10 -9 -9 -9 -9 -7 -7 -6 -6 -6 -6 ---------- Run | Scr Mat Min Mat Sto Gar Rec Fac Gar Fac Gar Fac Gar Machines Disabled 13 | . . . 2 3 1 1 . 2 1 3 . . Max in Single Turn 1 | . . . 1 1 1 1 . 1 1 1 . . Garrison Relay 6 | . . . . . 1 . . 2 . 3 . . Machines Sabotaged . | . . . . . . . . . . . . . Garrisons Compromised . | . . . . . . . . . . . . . Overloaded Fab Kills . | . . . . . . . . . . . . . Fab Network Shutdowns . | . . . . . . . . . . . . . Hacking | -11 -10 -10 -9 -9 -9 -9 -7 -7 -6 -6 -6 -6 --------- Run | Scr Mat Min Mat Sto Gar Rec Fac Gar Fac Gar Fac Gar Machines Accessed 22 | . 2 . 4 5 . 6 2 . 1 . 2 . Terminals 14 | . 2 . 3 4 . 3 1 . . . 1 . Fabricators . | . . . . . . . . . . . . . Repair Stations . | . . . . . . . . . . . . . Recycling Units 4 | . . . 1 . . 3 . . . . . . Scanalyzers . | . . . . . . . . . . . . . Garrison Access 4 | . . . . 1 . . 1 . 1 . 1 . Total Hacks 41 | . 5 . 6 10 . 11 4 . 1 . 4 . Successful 18 | . . . 3 3 . 7 1 . 1 . 3 . Failed 23 | . 5 . 3 7 . 4 3 . . . 1 . Catastrophic 5 | . . . 1 1 . 2 1 . . . . . Database Lockouts . | . . . . . . . . . . . . . Manual 28 | . 3 . 8 5 . 10 . . . . 2 . Terminals 33 | . 5 . 5 9 . 8 3 . . . 3 . Fabricators . | . . . . . . . . . . . . . Repair Stations . | . . . . . . . . . . . . . Recycling Units 4 | . . . 1 . . 3 . . . . . . Scanalyzers . | . . . . . . . . . . . . . Garrison Access 4 | . . . . 1 . . 1 . 1 . 1 . Terminal Hacks 7 | . . . 1 2 . 3 . . . . 1 . Record 1 | . . . . . . 1 . . . . . . Robot Analysis 1 | . . . 1 . . . . . . . . . Open Door 2 | . . . . 2 . . . . . . . . Unreport Threat 3 | . . . . . . 2 . . . . 1 . Fabricator Hacks . | . . . . . . . . . . . . . Repair Station Hacks . | . . . . . . . . . . . . . Recycling Unit Hacks . | . . . . . . . . . . . . . Scanalyzer . | . . . . . . . . . . . . . Garrison Access Hacks 4 | . . . . 1 . . 1 . 1 . 1 . Unlock Access 4 | . . . . 1 . . 1 . 1 . 1 . Unauthorized Hacks 7 | . . . 2 . . 4 . . . . 1 . Terminals 3 | . . . 1 . . 1 . . . . 1 . Track 1 | . . . 1 . . . . . . . . . Botnet 2 | . . . . . . 1 . . . . 1 . Fabricators . | . . . . . . . . . . . . . Repair Stations . | . . . . . . . . . . . . . Recycling Units 4 | . . . 1 . . 3 . . . . . . Tunnel 4 | . . . 1 . . 3 . . . . . . Scanalyzers . | . . . . . . . . . . . . . Garrison Access . | . . . . . . . . . . . . . Data Cores Recovered . | . . . . . . . . . . . . . Used . | . . . . . . . . . . . . . Hacking Detections 16 | . 2 . 3 3 . 3 2 . 1 . 2 . Full Trace Events 4 | . 1 . . . . 2 1 . . . . . Feedback Events . | . . . . . . . . . . . . . Feedback Blocked . | . . . . . . . . . . . . . Robot Schematics Acquired . | . . . . . . . . . . . . . Robots Built . | . . . . . . . . . . . . . Matter . | . . . . . . . . . . . . . Time . | . . . . . . . . . . . . . Total Robot Build Rating . | . . . . . . . . . . . . . Part Schematics Acquired . | . . . . . . . . . . . . . Parts Built . | . . . . . . . . . . . . . Matter . | . . . . . . . . . . . . . Time . | . . . . . . . . . . . . . Total Part Build Rating . | . . . . . . . . . . . . . Parts Repaired . | . . . . . . . . . . . . . Time . | . . . . . . . . . . . . . Parts Recycled . | . . . . . . . . . . . . . Recycled Matter . | . . . . . . . . . . . . . Retrieved Matter . | . . . . . . . . . . . . . Retrieved Components . | . . . . . . . . . . . . . Parts Scanalyzed . | . . . . . . . . . . . . . Part Schematics Acquired . | . . . . . . . . . . . . . Parts Damaged . | . . . . . . . . . . . . . Bothacking | -11 -10 -10 -9 -9 -9 -9 -7 -7 -6 -6 -6 -6 ------------ Run | Scr Mat Min Mat Sto Gar Rec Fac Gar Fac Gar Fac Gar Used RIF Installer 3 | . . . . . 1 . . 1 . 1 . . Command Fork 1 | . . . . . . . . 1 . . . . Patrol Navigation 1 | . . . . . . . . . . 1 . . Robots Hacked 6 | . . . . . . . . . 5 1 . . Non-combat 5 | . . . . . . . . . 5 . . . Combat 1 | . . . . . . . . . . 1 . . Robot Hacks Applied 7 | . . . . . . . . . 6 1 . . parse_system 1 | . . . . . . . . . 1 . . . generate_echo 1 | . . . . . . . . . 1 . . . map_walls 2 | . . . . . . . . . 2 . . . drop_inventory 1 | . . . . . . . . . 1 . . . locate_stockpiles 1 | . . . . . . . . . 1 . . . streamctrl_high 1 | . . . . . . . . . . 1 . . Relay Couplers Released 25 | . . . . . 5 . . 7 . 13 . . Machine Destruction 25 | . . . . . 5 . . 7 . 13 . . Attached 2 | . . . . . . . . . 1 1 . . Robots Rewired 2 | . . . . . . . . . 2 . . . Allies Hacked . | . . . . . . . . . . . . . Hacks Repelled . | . . . . . . . . . . . . . Allies | -11 -10 -10 -9 -9 -9 -9 -7 -7 -6 -6 -6 -6 -------- Run | Scr Mat Min Mat Sto Gar Rec Fac Gar Fac Gar Fac Gar Total Allies 3 | . . . . . . . . . 2 1 . . Largest Group 2 | . . . . . . . . . 2 2 . . Highest-Rated Group 81 | . . . . . . . . . 53 81 . . Highest-Rated Ally 81 | . . . . . . . . . 41 81 . . Total Orders 1 | . . . . . . . . . . 1 . . STAY 1 | . . . . . . . . . . 1 . . Ally Attacks 14 | . . . . . . . . . . 14 . . Total Damage 643 | . . . . . . . . . . 643 . . Kills 3 | . . . . . . . . . . 3 . . Allies Corrupted . | . . . . . . . . . . . . . Allies Melted . | . . . . . . . . . . . . . Intel | -11 -10 -10 -9 -9 -9 -9 -7 -7 -6 -6 -6 -6 ------- Run | Scr Mat Min Mat Sto Gar Rec Fac Gar Fac Gar Fac Gar Robot Analysis Total 1 | . . . 1 . . . . . . . . . Derelict Logs Recovered 1 | . . 1 . . . . . . . . . . Drone Launches . | . . . . . . . . . . . . . Drone Recoveries . | . . . . . . . . . . . . . Exploration | -11 -10 -10 -9 -9 -9 -9 -7 -7 -6 -6 -6 -6 ------------- Run | Scr Mat Min Mat Sto Gar Rec Fac Gar Fac Gar Fac Gar Turns Passed 10506 | . 464 930 1860 691 1238 575 1233 1328 330 1182 437 238 Spaces Moved 4315 | 1 140 531 773 217 530 278 488 521 133 478 148 77 Core . | . . . . . . . . . . . . . Treads 3318 | . 81 531 773 217 530 278 488 364 32 . 24 . Legs 997 | 1 59 . . . . . . 157 101 478 124 77 Wheels . | . . . . . . . . . . . . . Hover . | . . . . . . . . . . . . . Flight . | . . . . . . . . . . . . . Fastest Speed 120 | 120 120 160 160 200 200 200 180 180 180 150 210 150 Average Speed 191 | 120 175 162 196 211 200 200 195 192 182 184 238 188 Slowest Speed 360 | 120 180 180 220 260 200 200 220 280 200 360 330 300 Overloaded Moves . | . . . . . . . . . . . . . Propulsion Burnouts . | . . . . . . . . . . . . . Robots Hopped . | . . . . . . . . . . . . . Cave-ins Triggered . | . . . . . . . . . . . . . Exploration Rate (%) 45 | 2 27 76 70 49 77 86 20 65 5 82 6 23 Regions Visited 12 Branch Regions 3 Pre-discovered Areas 5 | . . 1 1 . . 3 . . . . . . Known Exits Taken 5 | . . . 1 1 . . 1 . 1 . 1 . Unknown Exits Taken 4 | 1 1 1 . . . 1 . . . . . . Scrap Searched 1 | . . 1 . . . . . . . . . . Spaces Dug 25 | . . . . 10 . . 4 1 . 10 . . Terrain Destroyed 173 | . . . 37 25 25 . 18 34 6 25 . 3 Melee . | . . . . . . . . . . . . . Projectile 8 | . . . . . . . . 7 . 1 . . AOE 165 | . . . 37 25 25 . 18 27 6 24 . 3 Terrain Rammed . | . . . . . . . . . . . . . Walls Destroyed . | . . . . . . . . . . . . . Machines Disabled . | . . . . . . . . . . . . . Actions | -11 -10 -10 -9 -9 -9 -9 -7 -7 -6 -6 -6 -6 --------- Run | Scr Mat Min Mat Sto Gar Rec Fac Gar Fac Gar Fac Gar Total 5505 | . 244 562 958 329 636 288 641 693 186 659 190 119 Wait 79 | . 5 7 20 8 5 . 13 8 . 11 2 . Move 4305 | . 139 530 772 217 529 277 487 519 133 477 148 77 Hop . | . . . . . . . . . . . . . Pick Up 111 | . 13 2 25 11 9 . 14 16 6 8 6 1 Fast Attach 56 | . 1 . 9 3 1 . 4 11 4 11 7 5 Attach 60 | . 7 1 3 4 2 . 5 10 5 17 2 4 Detach 2 | . . . 1 . . . . . . . . 1 Swap 119 | . 1 1 18 10 12 . 28 21 8 18 . 2 Drop 106 | . 4 . 24 12 11 . 21 19 8 7 . . Fire 580 | . 71 21 86 62 51 5 68 81 13 73 20 29 Melee 11 | . . . . 1 . . . . 9 1 . . Ram . | . . . . . . . . . . . . . Kick 2 | . 1 . . . . . . . . 1 . . Crush 4 | . 2 . . 1 . . 1 . . . . . Escape Stasis 64 | . . . . . 16 . . 8 . 35 5 . Rewire 6 | . . . . . . 6 . . . . . . Trap . | . . . . . . . . . . . . . Miscellaneous . | . . . . . . . . . . . . . Route ------- -11/Scrapyard -10/Materials -10/Mines -9/Materials (discovered 6 exits: *Mat x3 / *Min x2 / *Sto) -9/Storage -9/Garrison (discovered 3 exits: *Rec x3) -9/Recycling -7/Factory -7/Garrison (discovered 2 exits: *Fac x2) -6/Factory -6/Garrison (discovered 3 exits: *Fac x3) -6/Factory -6/Garrison History --------- Turn | Location | Event 1 | -11/Scrapyard | Discovered new exit (range 0) 1 | -11/Scrapyard | Entered Materials 222 | -10/Materials | Core integrity fell below 50% 245 | -10/Materials | Lost 3 parts (1p2w) 317 | -10/Materials | Build established: Mutant 453 | -10/Materials | Discovered new exit (range 7) 465 | -10/Materials | Entered Mines 466 | -10/Mines | Learned location of Storage (-9) 708 | -10/Mines | Learned location of 2 exits from Materials 860 | -10/Mines | Found a damaged Exp. Sensor Array with a note attached 863 | -10/Mines | Found Prototype Device 952 | -10/Mines | Assembled infested the area 1335 | -10/Mines | Discovered new exit (range 16) 1370 | -10/Mines | Core integrity fell below 20% 1395 | -10/Mines | Entered Materials 1395 | -9/Materials | Evolved 2 slots: Utility x2 1396 | -9/Materials | Identified exit to Mines 1396 | -9/Materials | Identified exit to Materials 1725 | -9/Materials | Discovered exit to Mines (range 7) 1912 | -9/Materials | Discovered exit to Materials (range 11) 1925 | -9/Materials | Build established: Hauler-Mutant 2093 | -9/Materials | Identified Exp. Sensor Array 2721 | -9/Materials | Discovered exit to Materials (range 16) 3245 | -9/Materials | Discovered new exit (range 5) 3253 | -9/Materials | Identified exit to Storage 3255 | -9/Materials | Entered Storage 3660 | -9/Storage | Garrison activated, responded to threat 3946 | -9/Storage | Identified exit to Garrison 3946 | -9/Storage | Entered Garrison 4038 | -9/Garrison | Triggered checkpoint 4076 | -9/Garrison | Garrison Relay disabled 4230 | -9/Garrison | Triggered checkpoint 4235 | -9/Garrison | Triggered checkpoint 4263 | -9/Garrison | Destroyed 7 combat bots 4340 | -9/Garrison | Triggered checkpoint 4418 | -9/Garrison | Discovered new exit (range 10) 4516 | -9/Garrison | Triggered checkpoint 4604 | -9/Garrison | Triggered checkpoint 4674 | -9/Garrison | Discovered new exit (range 15) 4682 | -9/Garrison | Core integrity fell below 50% 5000 | -9/Garrison | Discovered new exit (range 8) 5070 | -9/Garrison | Triggered checkpoint 5176 | -9/Garrison | Installed Relay Interface Framework 5184 | -9/Garrison | Entered Recycling 5203 | -9/Recycling | Spotter reported a threat 5241 | -9/Recycling | Spotter reported a threat 5253 | -9/Recycling | Spotter reported a threat 5290 | -9/Recycling | Spotter reported a threat 5290 | -9/Recycling | Spotter reported a threat 5306 | -9/Recycling | Spotter reported a threat 5366 | -9/Recycling | Spotter reported a threat 5422 | -9/Recycling | Spotter reported a threat 5440 | -9/Recycling | Spotter reported a threat 5445 | -9/Recycling | Spotter reported a threat 5472 | -9/Recycling | Spotter reported a threat 5475 | -9/Recycling | Spotter reported a threat 5493 | -9/Recycling | Spotter reported a threat 5496 | -9/Recycling | Spotter reported a threat 5498 | -9/Recycling | Spotter reported a threat 5515 | -9/Recycling | Spotter reported a threat 5527 | -9/Recycling | Spotter reported a threat 5528 | -9/Recycling | Spotter reported a threat 5529 | -9/Recycling | Spotter reported a threat 5551 | -9/Recycling | Spotter reported a threat 5579 | -9/Recycling | Spotter reported a threat 5610 | -9/Recycling | Spotter reported a threat 5618 | -9/Recycling | Spotter reported a threat 5662 | -9/Recycling | Spotter reported a threat 5663 | -9/Recycling | Spotter reported a threat 5663 | -9/Recycling | Spotter reported a threat 5674 | -9/Recycling | Spotter reported a threat 5704 | -9/Recycling | Spotter reported a threat 5708 | -9/Recycling | Spotter reported a threat 5716 | -9/Recycling | Spotter reported a threat 5749 | -9/Recycling | Discovered new exit (range 5) 5755 | -9/Recycling | Spotter reported a threat 5755 | -9/Recycling | Spotter reported a threat 5759 | -9/Recycling | Entered Factory 5759 | -7/Factory | Evolved 4 slots: Propulsion x1, Utility x3 6967 | -7/Factory | Identified exit to Garrison 6992 | -7/Factory | Entered Garrison 7100 | -7/Garrison | Triggered checkpoint 7294 | -7/Garrison | Triggered checkpoint 7354 | -7/Garrison | Lost 7 parts (2n3u2w) 7616 | -7/Garrison | Discovered new exit (range 14) 7680 | -7/Garrison | Triggered checkpoint 7878 | -7/Garrison | Triggered checkpoint 8095 | -7/Garrison | Discovered new exit (range 12) 8129 | -7/Garrison | Expanded RIF knowledge: Command Fork 8174 | -7/Garrison | Triggered checkpoint 8263 | -7/Garrison | Garrison Relay disabled 8320 | -7/Garrison | Entered Factory 8320 | -6/Factory | Evolved 2 slots: Utility x2 8579 | -6/Factory | Build established: Bothacker-Mutant 8650 | -6/Factory | Identified exit to Garrison 8650 | -6/Factory | Entered Garrison 8650 | -6/Garrison | Accompanied by 2 allies 8674 | -6/Garrison | Triggered checkpoint 8707 | -6/Garrison | Garrison Relay disabled 8798 | -6/Garrison | Spotted B-75 Beast 8830 | -6/Garrison | Hijacked Beast 5a control node with streamctrl_high 8836 | -6/Garrison | Triggered checkpoint 8871 | -6/Garrison | Destroyed Beast 5a 8893 | -6/Garrison | Lost 8 parts (1p2n2u3w) 8931 | -6/Garrison | Triggered checkpoint 9036 | -6/Garrison | Lost 8 parts (3n3u2w) 9152 | -6/Garrison | Discovered new exit (range 15) 9192 | -6/Garrison | Expanded RIF knowledge: Watcher Feeds 9234 | -6/Garrison | Triggered checkpoint 9323 | -6/Garrison | Garrison Relay disabled 9328 | -6/Garrison | Build established: Scavenger-Mutant 9491 | -6/Garrison | Garrison Relay disabled 9539 | -6/Garrison | Discovered new exit (range 15) 9746 | -6/Garrison | Discovered new exit (range 13) 9800 | -6/Garrison | Core integrity fell below 50% 9832 | -6/Garrison | Entered Factory 9856 | -6/Factory | Lost 14 parts (1p5n3u5w) 10091 | -6/Factory | Build established: Hauler-Mutant 10269 | -6/Factory | Identified exit to Garrison 10269 | -6/Factory | Entered Garrison 10340 | -6/Garrison | Triggered checkpoint 10357 | -6/Garrison | Core integrity fell below 20% 10433 | -6/Garrison | Lost 5 parts (1p2n1u1w) 10481 | -6/Garrison | Triggered checkpoint 10492 | -6/Garrison | Triggered checkpoint 10494 | -6/Garrison | Triggered checkpoint 10507 | -6/Garrison | Destroyed by Y-54 Guardian with Gatling Laser Last Messages --------------- 10407_ H-66 Slayer destroyed. 10413_ Acquired Flexi-carbon Leg. 10415_ Acquired 64 matter. 10419_ Acquired Flexi-carbon Leg. 10422_ Acquired Gauss Rifle. 10433_ Acquired 55 matter. 10436_ Acquired Targeting Computer. 10451_ Acquired Target Analyzer. 10453_ Acquired 42 matter. 10484_ Slug penetrates Wall. 10492_ Beams of light sweep through the air. An alarm sounds. 10494_ Penetrated by Slug. 10497_ Slug penetrates Wall. 10500_ Penetrated by Slug. 10501_ H-66 Slayer system terminally corrupted. 10501_ Prc. Assault Rifle destroyed. 10503_ Carbon-fiber Leg destroyed. 10503_ Chain reaction triggered in Lgt. Fission Core. 10506_ The unstable cave ceiling collapses. 10506_ Lgt. Angular Momentum Engine destroyed. Map ----- +----------------------------------------------------+ | ?????????????????????????????????????????????????? | | ?????????????????????????????????????????????????? | | ?????????????????????????????????????????????????? | | ?????????????????????????????????????????????????? | | ?????????????????????????????????????????????????? | | ?????????????????????????????????????????????????? | | ?????????????????????????????????????????????????? | | ?????????????????????????????????????????????????? | | ?????????????????????????????????????????????????? | | ?????????????????????????????????????????????????? | | ?????????????????????????????????????????????????? | | ?????????????????????????????????????????????????? | | ??????????????????????????? #??????????????????? | | ??????????????????????????? ##?????????????????? | | ??????????????????????????# ?? ????????????? | | ??????????????????????????# ?? ???????????? | | ??????????????????????????# ?? ???????????? | | ??????????????????????????# #? #? ????????? | | ??????????????????????????# ## ## ????????? | | ??????????????????????????" "???????? | | ??????????????????????????" ????????? | | ?????????????????????##???" ?????????? | | ????????????????????## ??" ? ??????????? | | ????????????????????? ### ## #??? #???????? | | ????????????????####### Y i ## ##??????? | | ????????????????# @ =% d ??????? | | ????????????????# ??????? | | ????????????????# ### Y gb #???????? | | ????????????????# #?# # ## #????????? | | ????????????????#^ #?# ### # ##?? #????????????? | | ??????###########^^### ##### #??????????????????? | | ??????# [ " !" #??????????????????? | | ??????# ######### #####!### #??????????????????? | | ????? #???????# #???# #?# #??????????????????? | | ????# #???????# ######### #??????????????????? | | ????# #???????# #??????????????????? | | ????### #???????# #??????????????????? | | ??????# #???????# ############??????????????????? | | ??????# #???????# #?????????????????????????????? | | ??????# #???????# #?????????????????????????????? | | ??????# ???????# #?????????????????????????????? | | ???????##???????# #?????????????????????????????? | | ????????????????# #?????????????????????????????? | | ????????????????# #?????????????????????????????? | | ????????????????# #?????????????????????????????? | | ????????????????# #?????????????????????????????? | | ????????????????# #?????????????????????????????? | | ???????########## #?????????????????????????????? | | ???????# #?????????????????????????????? | | ???????# #?????????????????????????????? | +----------------------------------------------------+ Best States ------------- Heat Dissipation 89 Energy Generation 18 Energy Capacity 310 Matter Stores 300 Matter Capacity 300 Sight Range 16 Terrain Scan Range 16 Terrain Scan Density 210 Armor Coverage 525 Resistance: KI 20 Resistance: TH 10 Core Shielding 20 Weapon Shielding 66 Evasion (%) 40 Targeting Accuracy 16 Target Analysis 5 Recoil Reduction 3 Relay Coupler Types 21 Relay Coupler Value 1 Item Schematics ----------------- None Robot Schematics ------------------ None Fabricated ------------ Nothing Alien Tech Used ----------------- None Achievements -------------- None Challenges ------------ None Game ------ Seed ExperimentalFlakStabilizer Manual? 0 Play Time 01:13:42 Cumulative 193.5 hours Start 2020.12.28 @ 18:44:36 End 2020.12.28 @ 20:21:05 Sessions 1 Manual Loads 0 Difficulty Rogue Special Mode None Game No. 185 Rogue 178 Adventurer 0 Explorer 7 Win Type - Total 4 Types 0/0/4/0/0/0/0/0/0 Lore% 65 Gallery% 89 Achievement% 66 Wizard Run 0 Options --------- ASCII 0 Keyboard 0 Movement Mouse Keybinds 0 Fullscreen 1 Font 18/X11 Map View 76x50 Tactical HUD 1 Map Filters NONE Filters NONE Steam 1 RUN: 9650fb16-9b7e-4c06-a924-3ce89dd7dd8d